Cogmind - Beta 16 @@@ ROGUE MODE // 2025.12.04 @ 17:38:42 Player: Lazz Result: Destroyed by G-73 Enforcer with Phase Gun Performance ------------- Evolutions (8) 4000 Regions Visited (16) 3200 Robots Destroyed (55) 275 Value Destroyed (2185) 2185 Prototype IDs (24) 480 Alien Tech Used (0) 0 Bonus (4299) 4299 TOTAL SCORE: 14439 Bonus ------- Triggered High Security 500 High Alert Combat Kills 267 Follower Combat Kills 2279 Registered with UFD 300 Met Optimus in HQ 500 Scanned by Researcher 500 Friendly Fire -47 Cogmind --------- Core Integrity 0/1450 Matter 26/300 Energy 75/100 System Corruption 23% Temperature Cool (0) Movement Rolling (119) Ox2 Location -2/Testing Parts ------- > --- POWER (2) -------- (None) > --- PROPULSION (5) --- Centrium Heavy Treads Armored Huge Wheel Centrium Wheel > --- UTILITY (11) ----- Huge Storage Unit Machine Analyzer Experimental Targeting Computer Improved Melee Analysis Suite Improved Target Analyzer Improved Weapon Shielding Medium Regenerative Plating Medium Regenerative Plating Improved Hacking Suite > --- WEAPON (5) ------- Scatter Rocket Array Companion Sword (fused) > --- INVENTORY (25) --- Centrium Leg Cooled Field Propulsion Drive Cooled Impulse Thruster Improved Q-thruster Advanced Heat Sink Medium Matter Pod (100) Experimental Terrain Scan Processor Tesla Rifle Linear Accelerator Mace Peak State ------------ > --- POWER ------------ Light Angular Momentum Engine Light Antimatter Reactor > --- PROPULSION ------- Armored Huge Wheel Centrium Wheel Centrium Wheel Centrium Wheel > --- UTILITY ---------- Huge Storage Unit Machine Analyzer Improved Sensor Array Experimental Targeting Computer Cloaking Device Cloaking Device Hacking Suite Improved Hacking Suite System Shield System Shield Improved System Shield > --- WEAPON ----------- Quantum Rifle Quantum Rifle Barrage Gun Railgun Companion Sword > --- INVENTORY -------- Fission Core Centrium Heavy Treads Centrium Heavy Treads Centrium Heavy Treads Centrium Heavy Treads Centrium Wheel Centrium Wheel Centrium Wheel Centrium Wheel Centrium Wheel Cooled Impulse Thruster Medium Matter Pod Experimental Terrain Scan Processor Improved Target Analyzer Propulsion Shielding Improved Propulsion Shielding Barrage Gun Scatter Rocket Array Fusion Bomb Launcher Mace [Rating: 130] Favorites ----------- Power Improved Ion Engine Engine Improved Ion Engine Power Core Fission Core Reactor Light Antimatter Reactor Propulsion Compact Wheel Treads Centrium Heavy Treads Leg Aluminum Leg Wheel Compact Wheel Utility Huge Storage Unit Device Hardlight Generator Storage Huge Storage Unit Processor Advanced Signal Interpreter Hackware System Shield Protection Light Armor Plating Weapon Gauss Rifle Energy Gun Beam Rifle Energy Cannon Proton Cannon Ballistic Gun Gauss Rifle Launcher Improved Grenade Launcher Impact Weapon Mace Slashing Weapon Companion Sword Build | -11 -10 -10 -9 -9 -8 -8 -8 -8 -6 -5 -5 -5 -4 -3 -2 -2 ------- Run | Yrd Mat Min Mat Min Mat Sto Rec Scr Fac Fac Was Fac Fac Res Res Tes Slots Evolved 16 | . . . 2 . 2 . . . 4 2 . . 2 2 2 . Power 1 | . . . . . . . . . . . . . 1 . . . Propulsion 3 | . . . . . . . . . 2 . . . . 1 . . Utility 9 | . . . 1 . 1 . . . 2 2 . . 1 1 1 . Weapon 3 | . . . 1 . 1 . . . . . . . . . 1 . Parts Attached 105 | 6 1 . 8 . 3 8 4 1 13 8 . 5 7 10 25 6 Power 12 | . 1 . 1 . . 1 . . 1 . . . 2 1 4 1 Engine 4 | . 1 . 1 . . 1 . . . . . . . 1 . . Core 3 | . . . . . . . . . 1 . . . 1 . 1 . Reactor 5 | . . . . . . . . . . . . . 1 . 3 1 Propulsion 25 | 2 . . 1 . . 3 . . 2 2 . 1 2 1 9 2 Treads 3 | . . . . . . . . . . . . . . . 3 . Leg 2 | . . . . . . . . . 1 . . . . . . 1 Wheel 20 | 2 . . 1 . . 3 . . 1 2 . 1 2 1 6 1 Hover . | . . . . . . . . . . . . . . . . . Flight . | . . . . . . . . . . . . . . . . . Utility 38 | 2 . . 4 . 2 3 . 1 7 3 . 2 3 2 6 3 Device 10 | 1 . . 2 . 1 1 . . 1 1 . 1 . 1 . 1 Storage 3 | 1 . . 2 . . . . . . . . . . . . . Processor 6 | . . . . . . 1 . 1 . . . . 1 1 2 . Hackware 7 | . . . . . . . . . 3 . . 1 2 . 1 . Protection 12 | . . . . . 1 1 . . 3 2 . . . . 3 2 Artifact . | . . . . . . . . . . . . . . . . . Weapon 30 | 2 . . 2 . 1 1 4 . 3 3 . 2 . 6 6 . Energy Gun 10 | . . . 1 . . . 2 . . . . . . 3 4 . Energy Cannon 1 | . . . . . . . . . . 1 . . . . . . Ballistic Gun 13 | 2 . . 1 . . 1 1 . 2 1 . 1 . 2 2 . Ballistic Cannon . | . . . . . . . . . . . . . . . . . Launcher 3 | . . . . . . . 1 . . . . 1 . 1 . . Special Weapon . | . . . . . . . . . . . . . . . . . Impact Weapon 1 | . . . . . . . . . 1 . . . . . . . Slashing Weapon 2 | . . . . . 1 . . . . 1 . . . . . . Piercing Weapon . | . . . . . . . . . . . . . . . . . Special Melee Weapon . | . . . . . . . . . . . . . . . . . Unidentified Prototypes 8 | . . . . . . . 1 . . 1 . . 1 . 1 4 Corrupted Parts 1 | . . . . . . 1 . . . . . . . . . . System Corruption 2 | . . . . . . 2 . . . . . . . . . . Parts Lost 64 | . . 1 1 . . 8 . . . 7 . 4 1 5 33 4 Power 11 | . . . 1 . . 1 . . . . . . 1 1 6 1 Propulsion 14 | . . . . . . 2 . . . 1 . 2 . . 9 . Utility 18 | . . 1 . . . 2 . . . 2 . 1 . 1 9 2 Weapon 21 | . . . . . . 3 . . . 4 . 1 . 3 9 1 Highest Loss Streak 17 | . . 1 1 . . 7 . . . 3 . 2 1 4 17 3 To Critical Strikes 1 | . . . . . . . . . . 1 . . . . . . Average Backups 17 | 4 8 8 9 11 11 13 12 19 20 22 22 23 23 21 16 11 Power 1 | . . . 1 1 1 . 1 1 2 4 5 3 2 1 1 . Propulsion 4 | 2 4 4 4 5 5 4 3 3 1 1 3 4 7 9 7 3 Utility 6 | . 2 2 2 4 3 7 5 9 7 8 6 8 8 5 3 3 Weapon 4 | . 1 1 1 1 1 1 2 5 8 8 7 6 5 5 4 4 Tool/Special . | . . . . . . . . . . . . . . . . . Unused Backups 20 | . . 1 . . . 2 . . . . 2 1 4 1 1 8 Power 1 | . . . . . . . . . . . . 1 . . . . Propulsion 9 | . . . . . . . . . . . 1 . 4 . 1 3 Utility 7 | . . 1 . . . 2 . . . . 1 . . . . 3 Weapon 3 | . . . . . . . . . . . . . . 1 . 2 Tool/Special . | . . . . . . . . . . . . . . . . . Average Slot Usage (%) 91 | . 90 90 97 100 95 84 94 100 95 91 94 92 88 91 61 57 Engine 5 | . 4 14 11 11 9 8 9 9 1 . . . . 2 . . Core 1 | . . . . . . . . . 4 5 5 5 8 1 . . Wheel 18 | . 28 28 22 22 18 16 18 18 19 17 23 18 12 19 12 6 Device 10 | . 14 5 19 22 18 14 9 9 6 6 11 16 12 13 3 2 Storage 7 | . 14 14 11 11 9 9 9 9 6 5 5 5 5 4 4 4 Processor 6 | . . . . . . 9 9 9 6 5 5 5 4 6 12 17 Hackware 5 | . . . . . . . . . 12 11 11 15 20 20 7 4 Protection 5 | . . . . . 9 . 8 9 5 10 11 1 . . 2 8 Energy Gun 8 | . . . 11 11 9 4 14 18 7 . . . . 3 5 . Ballistic Gun 14 | . 28 28 22 22 18 14 16 18 11 13 11 14 15 7 1 . Slashing Weapon 1 | . . . . . 4 6 . . . 1 5 5 5 4 3 4 Peak Build Rating 130 | 7 8 8 14 14 21 24 23 29 47 60 58 73 95 123 130 117 Average Rating 43 | 4 7 7 12 14 18 20 21 27 41 51 57 69 85 111 92 89 On Entrance 38 | . 7 8 7 14 14 21 17 23 29 42 56 58 67 95 123 67 Avg Prop Armor Cover (%) 8 | . . . . . . . . . 5 4 . . . . 26 21 Naked Turns . | . . . . . . . . . . . . . . . . . Heaviest Build 131 | 10 13 13 96 96 102 99 107 107 115 123 113 113 115 131 130 119 Greatest Support 160 | 26 26 26 32 32 32 32 32 32 44 60 60 60 60 76 160 44 Greatest Overweight (x) 6 | . . . 2 2 3 6 3 3 3 2 1 2 2 1 3 3 Average Overweight (x) 2 | . . . . 2 3 2 3 3 2 1 1 1 1 1 1 2 Largest Inventory Capacity 25 | 8 8 8 25 25 25 25 25 25 25 25 25 25 25 25 25 25 Average Capacity 23 | 7 8 8 17 25 25 25 25 25 25 25 25 25 25 25 25 25 Most Carried 25 | 8 8 8 12 12 12 17 15 23 25 25 25 25 25 25 25 13 Average Carried 18 | 4 7 8 9 11 10 13 12 20 21 22 23 23 23 24 20 11 Final Capacity 25 | 8 8 8 25 25 25 25 25 25 25 25 25 25 25 25 25 25 Final Carried 25 | 8 8 8 11 12 11 12 13 23 25 23 23 24 25 25 9 10 Class Distribution -------------------- 36% | Tank 16% | Hacker-Skirmisher 12% | Mutant 11% | Hacker-Mutant 11% | Skirmisher 3% | Hacker-Gunner 3% | Assassin Dominant Class ---------------- Mutant | -10/Materials Mutant | -10/Mines Skirmisher | -9/Materials Skirmisher | -9/Mines Skirmisher | -8/Materials Assassin | -8/Storage Tank | -8/Recycling Tank | -8/Scraptown Hacker-Skirmisher | -6/Factory Hacker-Skirmisher | -5/Factory Hacker-Mutant | -5/Waste Hacker-Skirmisher | -5/Factory Hacker-Gunner | -4/Factory Hacker-Skirmisher | -3/Research Mutant | -2/Research Mutant | -2/Testing Resources | -11 -10 -10 -9 -9 -8 -8 -8 -8 -6 -5 -5 -5 -4 -3 -2 -2 ----------- Run | Yrd Mat Min Mat Min Mat Sto Rec Scr Fac Fac Was Fac Fac Res Res Tes Matter Collected 2525 | 274 . 32 376 . . 193 113 19 82 643 35 201 185 250 122 . Remotely . | . . . . . . . . . . . . . . . . . Salvage Created 2365 | 147 . 32 234 . 42 219 112 . 142 402 . 161 245 105 524 . Parts 116 | 10 . 4 19 . 2 8 4 . 6 21 . 12 9 3 18 . Haulers Intercepted 4 | . . . 1 . 1 2 . . . . . . . . . . Recyclers Shooed 2 | . . . . . . . . . . 2 . . . . . . Parts Field Recycled . | . . . . . . . . . . . . . . . . . Retrieved Matter . | . . . . . . . . . . . . . . . . . Parts Self-Destructed . | . . . . . . . . . . . . . . . . . Prevented . | . . . . . . . . . . . . . . . . . Parts Restored . | . . . . . . . . . . . . . . . . . Kills | -11 -10 -10 -9 -9 -8 -8 -8 -8 -6 -5 -5 -5 -4 -3 -2 -2 ------- Run | Yrd Mat Min Mat Min Mat Sto Rec Scr Fac Fac Was Fac Fac Res Res Tes Combat Hostiles Destroyed 41 | . . 2 5 . . 2 2 . 1 10 . 5 3 1 10 . Melee 7 | . . . . . . 1 . . . . . . . 1 5 . Guns 28 | . . 2 5 . . 1 2 . 1 10 . 4 3 . . . AOE 6 | . . . . . . . . . . . . 1 . . 5 . Classes Destroyed 12 | 2 . 1 5 . . 2 . . 1 1 . . . . . . Worker 2 | . . . 1 . . . . . . . . 1 . . . . Tunneler 3 | 3 . . . . . . . . . . . . . . . . Hauler 4 | . . . 1 . 1 2 . . . . . . . . . . Recycler 2 | 1 . . . . . . . . . 1 . . . . . . Operator 1 | . . . . . . . . . 1 . . . . . . . Watcher 2 | . . . 1 . . . . . 1 . . . . . . . Swarmer 17 | . . 2 3 . . . . . . 7 . 3 . . 2 . Grunt 11 | . . . 1 . . . . . . 1 . 2 3 . 4 . Duelist 2 | . . . . . . 1 . . . . . . . . 1 . Sentry 5 | . . . 1 . . . 2 . 1 . . . . 1 . . Hunter 1 | . . . . . . 1 . . . . . . . . . . Programmer 5 | . . . . . . . . . . 2 . . . . 3 . Best Kill Streak 5 | 3 . 2 3 . 1 2 1 . 1 4 . 3 2 1 5 . Combat Bots Only 5 | . . 2 2 . . 1 1 . 1 4 . 3 2 1 5 . Max Kills in Single Turn 2 | 1 . 1 1 . 1 1 1 . 1 2 . 1 1 1 2 . Gunslinging 1 | . . . . . . . . . . 1 . . . . . . Exploded 2 | . . . . . . . . . . . . 1 . . 2 . Melee 1 | . . . . . . 1 . . . . . . . 1 1 . Uniques/NPCs Destroyed . | . . . . . . . . . . . . . . . . . Combat | -11 -10 -10 -9 -9 -8 -8 -8 -8 -6 -5 -5 -5 -4 -3 -2 -2 -------- Run | Yrd Mat Min Mat Min Mat Sto Rec Scr Fac Fac Was Fac Fac Res Res Tes Hostile Shots Fired 828 | . . 8 51 . . 40 8 . 54 92 . 54 12 7 437 65 Missed 256 | . . 1 19 . . 12 1 . 26 25 . 17 6 1 134 14 Hits 572 | . . 7 32 . . 28 7 . 28 67 . 37 6 6 303 51 Melee 15 | . . . . . . 6 . . . . . . . . 9 . Projectile 557 | . . 7 32 . . 22 7 . 28 67 . 37 6 6 294 51 Critical Strikes 29 | . . . 1 . . 2 . . . 3 . 2 . . 18 3 Actively Blocked 2 | . . . . . . . . . . . . . . . 1 1 Part Disruptions 2 | . . . . . . . . . . 1 . . . . 1 . Damage Taken 12345 | . . 56 390 . . 598 85 . 115 1244 . 739 310 376 7334 1098 Core 2209 | . . 17 55 . . 267 12 . 10 203 . 113 68 . 1322 142 Absorbed by Shields 144 | . . . . . . 4 28 . 112 . . . . . . . Redirected to Shielding 298 | . . . . . . . . . 16 41 . . . . 213 28 Regen/Repaired (Parts) 400 | . . . . . . . . . . . 135 211 42 . . 12 Core Remaining (%) 86 | 100 . 93 . 86 . . . 49 98 . . 68 94 100 . . Volleys Fired 148 | 11 . 5 26 . . 16 4 . 8 27 . 24 7 8 11 1 Largest 4 | 2 . 2 3 . . 3 4 . 4 4 . 3 3 3 4 1 Hottest 333 | 40 . 40 93 . . 93 147 . 147 159 . 92 84 188 333 52 Shots Fired 414 | 22 . 10 78 . . 38 17 . 31 93 . 66 21 13 24 1 Gun 401 | 22 . 10 78 . . 38 17 . 31 85 . 65 21 13 21 . Cannon 8 | . . . . . . . . . . 8 . . . . . . Launcher 5 | . . . . . . . . . . . . 1 . . 3 1 Special . | . . . . . . . . . . . . . . . . . Kinetic 327 | 22 . 10 52 . . 30 9 . 16 85 . 65 21 7 10 . Thermal 63 | . . . 26 . . 8 4 . 8 . . . . 6 11 . Explosive 5 | . . . . . . . . . . . . 1 . . 3 1 Electromagnetic 19 | . . . . . . . 4 . 7 8 . . . . . . Robot Hit Streak 13 | 4 . 4 8 . . 6 5 . 8 7 . 4 6 5 12 13 Robot Miss Streak 10 | 1 . 1 5 . . 2 2 . 2 7 . 10 7 2 3 . Penetration Max 1 | . . . . . . . . . . 1 . 1 1 . . . Secondary Targets 9 | . . 1 1 . . . . . . 2 . 3 2 . . . Max Gunslinging Chain 1 | . . 1 1 . . . . . . 1 . 1 1 . . . Shots Hit Robots 298 | 16 . 6 39 . 4 29 13 . 25 57 . 32 14 10 52 1 Core Hits 141 | 5 . 2 16 . 1 10 3 . 8 36 . 20 8 3 23 6 Critical Kills 1 | . . . . . . . . . 1 . . . . . . . Critical Parts Destroyed 1 | . . . . . . . . . . . . . . . 1 . Critical Strikes 14 | . . . . . . 2 2 . 3 . . . . . 7 . Burn 5 | . . . . . . 2 2 . 1 . . . . . . . Destroy 2 | . . . . . . . . . 1 . . . . . 1 . Corrupt 1 | . . . . . . . . . 1 . . . . . . . Melee Attacks 70 | . . . . . 5 4 . . 1 5 . 1 . 2 49 3 Impact 1 | . . . . . . . . . 1 . . . . . . . Slashing 69 | . . . . . 5 4 . . . 5 . 1 . 2 49 3 Piercing . | . . . . . . . . . . . . . . . . . Sneak Attacks 3 | . . . . . 1 1 . . . . . . . . 1 . Combat Hostiles . | . . . . . . . . . . . . . . . . . Follow-up Attacks 1 | . . . . . . . . . . . . . . . 1 . Damage Inflicted 7486 | 201 . 75 570 . 168 412 187 . 377 1163 . 774 241 256 2526 536 Guns 4358 | 201 . 75 570 . . 296 177 . 377 1109 . 664 241 217 431 . Cannons 54 | . . . . . . . . . . 54 . . . . . . Explosions 1461 | . . . . . . . . . . . . 110 . . 815 536 Melee 1603 | . . . . . 168 116 . . . . . . . 39 1280 . Ramming 10 | . . . . . . . 10 . . . . . . . . . Kinetic 3568 | 201 . 75 408 . . 234 90 . 232 1109 . 664 241 138 176 . Thermal 676 | . . . 162 . . 62 45 . 73 . . . . 79 255 . Explosive 1461 | . . . . . . . . . . . . 110 . . 815 536 Electromagnetic 168 | . . . . . . . 42 . 72 54 . . . . . . Impact . | . . . . . . . . . . . . . . . . . Slashing 1603 | . . . . . 168 116 . . . . . . . 39 1280 . Piercing . | . . . . . . . . . . . . . . . . . Highest Corruption 23 | . . . 1 1 . 2 5 . 1 7 7 7 2 2 20 23 Average Corruption 5 | . . . 1 1 . 2 3 . 1 6 7 7 2 2 13 20 Corruption Purged . | . . . . . . . . . . . . . . . . . Corruption Blocked . | . . . . . . . . . . . . . . . . . Effects 79 | . . . . 2 . 1 17 . . 5 7 20 1 4 9 13 Message Errors 24 | . . . . 1 . . 4 . . . 2 8 1 2 4 2 Matter Fused 15 | . . . . . . . 5 . . 2 1 3 . 1 2 1 Heat Flow Errors 8 | . . . . 1 . . 4 . . . 1 . . . 1 1 Energy Discharges 4 | . . . . . . . . . . . 2 1 . . . 1 Parts Rejected 1 | . . . . . . . . . . . . . . . 1 . Parts Fused 2 | . . . . . . . . . . . . 1 . . . 1 Data Loss (minor) 11 | . . . . . . . 2 . . 3 . 4 . 1 . 1 Data Loss (major) 3 | . . . . . . . 1 . . . . . . . . 2 Misfires 3 | . . . . . . 1 1 . . . . 1 . . . . Alerts 4 | . . . . . . . . . . . 1 1 . . 1 1 Misdirections 3 | . . . . . . . . . . . . . . . . 3 Weapon Failures 1 | . . . . . . . . . . . . 1 . . . . Overload Shots . | . . . . . . . . . . . . . . . . . Overflow Damage 149 | . . . . . 20 . . . . 11 . . . . 118 . Projectiles 11 | . . . . . . . . . . 11 . . . . . . Explosions 55 | . . . . . . . . . . . . . . . 55 . Melee 83 | . . . . . 20 . . . . . . . . . 63 . Knockbacks . | . . . . . . . . . . . . . . . . . Impact . | . . . . . . . . . . . . . . . . . Kinetic . | . . . . . . . . . . . . . . . . . Secondary . | . . . . . . . . . . . . . . . . . Self-Inflicted Damage 235 | . . . . . . . 5 . . . . . . . 166 64 Shots 4 | . . . . . . . . . . . . . . . 3 1 Rammed 1 | . . . . . . . 1 . . . . . . . . . Targets Rammed 1 | . . . . . . . 1 . . . . . . . . . Kicked . | . . . . . . . . . . . . . . . . . Crushed . | . . . . . . . . . . . . . . . . . Highest Temperature 412 | . . . 166 124 . 126 202 . 373 337 228 . 4 99 412 178 Average Temperature 90 | . . . 40 69 . 71 78 . 158 104 126 . 2 45 174 105 Received Heat Transfer 1278 | . . . 144 . . 45 24 . 45 72 . 108 39 18 684 99 Effects 7 | . . . . . . . . . 1 3 . . . . 3 . Shutdowns 1 | . . . . . . . . . . . . . . . 1 . Interference 5 | . . . . . . . . . . 3 . . . . 2 . Short Circuit 1 | . . . . . . . . . 1 . . . . . . . Siege Activations . | . . . . . . . . . . . . . . . . . Martial Activations . | . . . . . . . . . . . . . . . . . Shielding Activations . | . . . . . . . . . . . . . . . . . Robots Disrupted 1 | . . . . . . . . . . . . . . . 1 . Combat Hostiles 1 | . . . . . . . . . . . . . . . 1 . Robots Corrupted . | . . . . . . . . . . . . . . . . . Combat Hostiles . | . . . . . . . . . . . . . . . . . Parts Fried 2 | . . . . . . . 2 . . . . . . . . . Impact Corruptions . | . . . . . . . . . . . . . . . . . Robots Melted . | . . . . . . . . . . . . . . . . . Combat Hostiles . | . . . . . . . . . . . . . . . . . Parts Melted 3 | . . . . . . . 1 . . . . . 1 1 . . Heat Transferred 1789 | . . . 481 . . 333 259 . 259 . . . . 124 333 . Parts Sabotaged . | . . . . . . . . . . . . . . . . . Parts Stolen . | . . . . . . . . . . . . . . . . . Parts Stripped . | . . . . . . . . . . . . . . . . . Power Chain Reactions . | . . . . . . . . . . . . . . . . . Alert | -11 -10 -10 -9 -9 -8 -8 -8 -8 -6 -5 -5 -5 -4 -3 -2 -2 ------- Run | Yrd Mat Min Mat Min Mat Sto Rec Scr Fac Fac Was Fac Fac Res Res Tes Maximum Alert Level 5 | . . . 1 . . . . . . 1 . 5 4 2 . . Low Security (%) 77 | 100 100 100 78 100 100 100 100 . 100 94 100 27 . . 100 100 Level 1 11 | . . . 21 . . . . . . 5 . 21 . 83 . . Level 2 4 | . . . . . . . . . . . . 17 16 16 . . Level 3 2 | . . . . . . . . . . . . 3 71 . . . Level 4 . | . . . . . . . . . . . . 3 12 . . . Level 5 1 | . . . . . . . . . . . . 14 . . . . High Security 1 | . . . . . . . . . . . . 11 . . . . Max Security . | . . . . . . . . . . . . . . . . . Peak Influence 2252 | 10 . 69 326 33 15 30 20 . 30 210 62 2252 1100 429 160 77 Initial 1100 | . . . 11 33 . . . . . . 62 . 1100 429 160 9 Average 175 | 1 . 35 106 6 4 3 1 . 2 127 20 734 909 334 28 5 Influence Increases 4951 | 20 . 89 586 . 23 94 59 . 87 415 . 2730 329 117 315 87 Destroy 0b10 Robot/C 2120 | . . 60 360 . . 40 40 . 20 200 . 980 140 60 220 . Destroy 0b10 Robot/NC 130 | 20 . . 15 . 5 10 . . 10 5 . 65 . . . . Destroy Leader 454 | . . 10 94 . 2 14 . . 12 40 . 202 30 30 20 . Allied During Kill 1268 | . . 4 85 . 1 . . . . . . 1031 129 15 3 . Successful Hack 103 | . . . 2 . . . 19 . 30 . . 40 . . 6 6 Select Force Hacks 30 | . . . 30 . . . . . . . . . . . . . Disable Machine 225 | . . . . . 15 15 . . 15 15 . 120 . . . 45 Destroy Structure 456 | . . . . . . . . . . 20 . 292 30 12 66 36 Lose Combat Pursuer 165 | . . 15 . . . 15 . . . 135 . . . . . . Influence Decreases 4906 | 20 . 60 530 85 20 97 59 . 87 236 179 488 1754 650 585 56 Entered New Map 1857 | . . . 18 52 . 3 . . . . 117 . 1144 390 126 7 Time Decay 1399 | 20 . 50 206 33 20 79 59 . 87 176 62 218 70 180 129 10 Lost Part 389 | . . 10 10 . . 10 . . . 60 . 40 10 50 160 39 Lost Ally 365 | . . . . . . 5 . . . . . 230 80 30 20 . Purge Threat 896 | . . . 296 . . . . . . . . . 450 . 150 . Squads Dispatched 39 | . . . 3 . . 2 . . . 8 . 17 3 . 4 2 Investigation 14 | . . . 1 . . 1 . . . 3 . 4 3 . 2 . Extermination 4 | . . . . . . . . . . 1 . 2 . . 1 . Reinforcement 14 | . . . 2 . . 1 . . . 1 . 7 . . 1 2 Assault 2 | . . . . . . . . . . . . 2 . . . . Garrison 5 | . . . . . . . . . . 3 . 2 . . . . Intercept . | . . . . . . . . . . . . . . . . . Searches Triggered . | . . . . . . . . . . . . . . . . . Construction Impeded 2 | . . . . . . . . . . . . 2 . . . . Haulers Reinforced 2 | . . . . . . . . . . . . 2 . . . . Active Scanning Responses . | . . . . . . . . . . . . . . . . . Cargo Convoy Interrupts . | . . . . . . . . . . . . . . . . . Stealth | -11 -10 -10 -9 -9 -8 -8 -8 -8 -6 -5 -5 -5 -4 -3 -2 -2 --------- Run | Yrd Mat Min Mat Min Mat Sto Rec Scr Fac Fac Was Fac Fac Res Res Tes Distress Signals 10 | . . . 1 . . 5 . . . . . 2 . . 2 . Communications Jammed . | . . . . . . . . . . . . . . . . . Distress Signals . | . . . . . . . . . . . . . . . . . Times Spotted 140 | . . 3 18 . . 14 2 . 4 17 . 40 9 3 23 7 Peak Tracking Total 9 | . . 3 4 . . 6 1 . 2 6 . 5 4 2 9 7 Tactical Retreats 5 | . . 1 . . . 1 . . . 3 . . . . . . Traps | -11 -10 -10 -9 -9 -8 -8 -8 -8 -6 -5 -5 -5 -4 -3 -2 -2 ------- Run | Yrd Mat Min Mat Min Mat Sto Rec Scr Fac Fac Was Fac Fac Res Res Tes Traps Triggered 11 | . . . 1 . . 1 . . 2 1 . 1 2 2 1 . Indirectly . | . . . . . . . . . . . . . . . . . Trap Hack Attempts . | . . . . . . . . . . . . . . . . . Triggered . | . . . . . . . . . . . . . . . . . Disarmed . | . . . . . . . . . . . . . . . . . Reprogrammed . | . . . . . . . . . . . . . . . . . Reused . | . . . . . . . . . . . . . . . . . Traps Extracted . | . . . . . . . . . . . . . . . . . Installed . | . . . . . . . . . . . . . . . . . Triggered . | . . . . . . . . . . . . . . . . . Machines | -11 -10 -10 -9 -9 -8 -8 -8 -8 -6 -5 -5 -5 -4 -3 -2 -2 ---------- Run | Yrd Mat Min Mat Min Mat Sto Rec Scr Fac Fac Was Fac Fac Res Res Tes Machines Disabled 15 | . . . . . 1 1 . . 1 1 . 8 . . . 3 Max in Single Turn 2 | . . . . . 1 1 . . 1 1 . 1 . . . 2 Garrison Access 1 | . . . . . . . . . . . . . . 1 . . Machines Repaired . | . . . . . . . . . . . . . . . . . Machines Dismantled . | . . . . . . . . . . . . . . . . . Machines Sabotaged . | . . . . . . . . . . . . . . . . . Overloaded Fab Kills . | . . . . . . . . . . . . . . . . . Hacking | -11 -10 -10 -9 -9 -8 -8 -8 -8 -6 -5 -5 -5 -4 -3 -2 -2 --------- Run | Yrd Mat Min Mat Min Mat Sto Rec Scr Fac Fac Was Fac Fac Res Res Tes Machines Accessed 37 | . . . 4 . . 1 6 4 2 4 . 8 3 1 3 1 Terminals 17 | . . . 3 . . 1 6 . 2 1 . 1 1 . 1 1 Fabricators 2 | . . . . . . . . . . . . 1 . . 1 . Repair Stations 1 | . . . . . . . . . . . . 1 . . . . Recycling Units 9 | . . . . . . . . . . 3 . 3 2 . 1 . Scanalyzers 3 | . . . 1 . . . . . . . . 2 . . . . Garrison Access 1 | . . . . . . . . . . . . . . 1 . . Total Hacks 132 | . . . 13 . . 3 18 15 12 10 . 29 17 1 12 2 Successful 64 | . . . 8 . . 2 4 15 3 5 . 13 6 1 6 1 Failed 68 | . . . 5 . . 1 14 . 9 5 . 16 11 . 6 1 Catastrophic 10 | . . . . . . . 5 . 2 1 . . 1 . 1 . Database Lockouts . | . . . . . . . . . . . . . . . . . Manual 25 | . . . 1 . . . . . 2 6 . 5 3 . 8 . Terminals 67 | . . . 9 . . 3 18 . 12 2 . 4 12 . 5 2 Fabricators 5 | . . . . . . . . . . . . 1 . . 4 . Repair Stations 5 | . . . . . . . . . . . . 5 . . . . Recycling Units 20 | . . . . . . . . . . 8 . 4 5 . 3 . Scanalyzers 19 | . . . 4 . . . . . . . . 15 . . . . Garrison Access 1 | . . . . . . . . . . . . . . 1 . . Terminal Hacks 38 | . . . 4 . . 2 4 15 3 . . 2 3 . 4 1 Record 13 | . . . . . . . . 13 . . . . . . . . Prototype ID Bank 1 | . . . . . . 1 . . . . . . . . . . Open Door 2 | . . . . . . . . 1 . . . . . . . 1 Branch Access Points 4 | . . . . . . 1 1 . 1 . . . . . 1 . Emergency Access Points 1 | . . . . . . . . . . . . 1 . . . . Terminal Index 2 | . . . . . . . . . . . . 1 . . 1 . Unreport Threat 7 | . . . 2 . . . . . . . . . 3 . 2 . Patrol Status 1 | . . . . . . . 1 . . . . . . . . . Transport Status 1 | . . . 1 . . . . . . . . . . . . . Registered Prototypes 1 | . . . . . . . . . 1 . . . . . . . Zone Layout 4 | . . . 1 . . . 2 . 1 . . . . . . . Proto ID Catalog 1 | . . . . . . . . 1 . . . . . . . . Fabricator Hacks 2 | . . . . . . . . . . . . . . . 2 . Load Schematic 1 | . . . . . . . . . . . . . . . 1 . Build 1 | . . . . . . . . . . . . . . . 1 . Repair Station Hacks 1 | . . . . . . . . . . . . 1 . . . . Scan Component 1 | . . . . . . . . . . . . 1 . . . . Recycling Unit Hacks 3 | . . . . . . . . . . 2 . . 1 . . . Process 2 | . . . . . . . . . . 1 . . 1 . . . Retrieve Components 1 | . . . . . . . . . . 1 . . . . . . Scanalyzer 9 | . . . 3 . . . . . . . . 6 . . . . Insert Component 2 | . . . . . . . . . . . . 2 . . . . Analyze 1 | . . . . . . . . . . . . 1 . . . . Retrieve Study 6 | . . . 3 . . . . . . . . 3 . . . . Garrison Access Hacks 1 | . . . . . . . . . . . . . . 1 . . Seal Access 1 | . . . . . . . . . . . . . . 1 . . Unauthorized Hacks 10 | . . . 1 . . . . . . 3 . 4 2 . . . Terminals . | . . . . . . . . . . . . . . . . . Fabricators . | . . . . . . . . . . . . . . . . . Repair Stations . | . . . . . . . . . . . . . . . . . Recycling Units 9 | . . . . . . . . . . 3 . 4 2 . . . Recyclers 1 | . . . . . . . . . . . . 1 . . . . Fedlink 6 | . . . . . . . . . . 3 . 2 1 . . . Scrapoids 2 | . . . . . . . . . . . . 1 1 . . . Scanalyzers 1 | . . . 1 . . . . . . . . . . . . . Extract 1 | . . . 1 . . . . . . . . . . . . . Garrison Access . | . . . . . . . . . . . . . . . . . Data Cores Recovered 1 | . . . . . . . . . 1 . . . . . . . Used . | . . . . . . . . . . . . . . . . . Hacking Detections 23 | . . . 3 . . 1 6 . 2 2 . 5 1 . 3 . Full Trace Events 10 | . . . 1 . . 1 4 . . . . 1 1 . 2 . Feedback Events 3 | . . . . . . . 3 . . . . . . . . . Corruption 3 | . . . . . . . 3 . . . . . . . . . Feedback Blocked . | . . . . . . . . . . . . . . . . . Robot Schematics Acquired . | . . . . . . . . . . . . . . . . . Robots Built . | . . . . . . . . . . . . . . . . . Authchips . | . . . . . . . . . . . . . . . . . Time . | . . . . . . . . . . . . . . . . . Total Robot Build Rating . | . . . . . . . . . . . . . . . . . Part Schematics Acquired 14 | . . . 13 . . . . . . . . 1 . . . . Parts Built 2 | . . . . . . . . . . . . . . . 2 . Authchips . | . . . . . . . . . . . . . . . . . Time 28 | . . . . . . . . . . . . . . . 28 . Total Part Build Rating 8 | . . . . . . . . . . . . . . . 8 . Part Studies Acquired 6 | . . . 3 . . . . . . . . 3 . . . . Parts Repaired . | . . . . . . . . . . . . . . . . . Time . | . . . . . . . . . . . . . . . . . Parts Recycled . | . . . . . . . . . . . . . . . . . Recycled Matter 241 | . . . . . . . . . . . . . 241 . . . Retrieved Matter . | . . . . . . . . . . . . . . . . . Retrieved Components . | . . . . . . . . . . . . . . . . . Parts Scanalyzed 2 | . . . . . . . . . . . . 2 . . . . Part Schematics Acquired 1 | . . . . . . . . . . . . 1 . . . . Parts Damaged . | . . . . . . . . . . . . . . . . . Bothacking | -11 -10 -10 -9 -9 -8 -8 -8 -8 -6 -5 -5 -5 -4 -3 -2 -2 ------------ Run | Yrd Mat Min Mat Min Mat Sto Rec Scr Fac Fac Was Fac Fac Res Res Tes Used RIF Installer . | . . . . . . . . . . . . . . . . . Robots Hacked . | . . . . . . . . . . . . . . . . . Non-combat . | . . . . . . . . . . . . . . . . . Combat . | . . . . . . . . . . . . . . . . . Robot Hacks Applied . | . . . . . . . . . . . . . . . . . Relay Couplers Released . | . . . . . . . . . . . . . . . . . Fabnet Peak Effective % . | . . . . . . . . . . . . . . . . . Robots Rewired . | . . . . . . . . . . . . . . . . . Allies Hacked 1 | . . . . . . . . . . . . 1 . . . . Hacks Repelled . | . . . . . . . . . . . . . . . . . Allies | -11 -10 -10 -9 -9 -8 -8 -8 -8 -6 -5 -5 -5 -4 -3 -2 -2 -------- Run | Yrd Mat Min Mat Min Mat Sto Rec Scr Fac Fac Was Fac Fac Res Res Tes Total Allies 34 | . . 4 . . . . . . . . 20 5 5 . . . Largest Group 20 | . . 4 4 3 3 3 . . . . 20 20 14 5 1 . Highest-Rated Group 792 | . . 71 71 40 40 40 . . . . 792 792 637 232 46 . Highest-Rated Ally 50 | . . 31 31 16 16 16 . . . . 50 50 50 47 46 . Total Orders 5 | . . . . . . . . . . . . 3 1 1 . . EXPLORE 5 | . . . . . . . . . . . . 3 1 1 . . Ally Attacks 412 | . . 3 47 . . 6 . . . . . 267 55 29 5 . Total Damage 10357 | . . 20 493 . . 68 . . . . . 7883 1127 671 95 . Kills 80 | . . 1 13 . . . . . . . . 59 4 2 1 . Allies Corrupted 3 | . . . . . . . . . . . . 2 . 1 . . Allies Melted . | . . . . . . . . . . . . . . . . . Intel | -11 -10 -10 -9 -9 -8 -8 -8 -8 -6 -5 -5 -5 -4 -3 -2 -2 ------- Run | Yrd Mat Min Mat Min Mat Sto Rec Scr Fac Fac Was Fac Fac Res Res Tes Active Infowar (turns) 4027 | 24 20 42 530 203 91 230 . . 359 428 218 693 156 361 499 173 Sensors 3483 | . . . 441 203 91 230 . . 359 428 218 693 156 361 303 . Terrain 1051 | . . . 530 203 91 227 . . . . . . . . . . Seismic 86 | 24 20 42 . . . . . . . . . . . . . . Machine Analysis 835 | . . . . . . . . . . . . . . 163 499 173 Cloaking 1651 | . . . . . . . . . . 135 218 693 156 361 88 . Robot Analysis Total . | . . . . . . . . . . . . . . . . . Derelict Logs Recovered 4 | . . 2 . 2 . . . . . . . . . . . . Drone Launches 9 | . . . . . . . . . . . . 7 1 1 . . Drone Recoveries 6 | . . . . . . . . . . . . 5 1 . . . Exploration | -11 -10 -10 -9 -9 -8 -8 -8 -8 -6 -5 -5 -5 -4 -3 -2 -2 ------------- Run | Yrd Mat Min Mat Min Mat Sto Rec Scr Fac Fac Was Fac Fac Res Res Tes Turns Passed 7112 | 123 20 126 531 203 91 341 754 1894 501 428 218 693 156 361 499 173 Spaces Moved 4821 | 57 20 87 360 158 49 180 540 1390 280 241 173 526 100 302 246 112 Core 2 | 2 . . . . . . . . . . . . . . . . Treads 51 | . . . . . . . . . . . . . . . 51 . Legs . | . . . . . . . . . . . . . . . . . Wheels 4768 | 55 20 87 360 158 49 180 540 1390 280 241 173 526 100 302 195 112 Hover . | . . . . . . . . . . . . . . . . . Flight . | . . . . . . . . . . . . . . . . . Fastest Speed 50 | 50 90 90 80 120 135 120 135 135 120 105 105 102 101 100 100 119 Average Speed 120 | 88 90 90 99 120 135 132 135 135 120 119 105 105 109 100 117 123 Slowest Speed 240 | 90 90 90 120 120 135 180 135 135 135 120 105 120 120 100 240 135 Overloaded Moves . | . . . . . . . . . . . . . . . . . Propulsion Burnouts . | . . . . . . . . . . . . . . . . . Robots Hopped . | . . . . . . . . . . . . . . . . . Potential Cave-ins 2 | . . . . . . . . . . . . . . . 2 . Cave-ins Triggered . | . . . . . . . . . . . . . . . . . Exploration Rate (%) 31 | 4 6 16 43 53 10 36 98 91 7 7 82 35 7 18 9 9 Regions Visited 16 Branch Regions 6 Pre-discovered Areas 4 | . . 2 . 1 . . . . . 1 . . . . . . Known Exits Taken 7 | . . . . . 1 1 1 1 1 . . 1 . . 1 . Unknown Exits Taken 7 | 1 1 1 1 1 . . . . . . . . 1 1 . . Scrap Searched 6 | . . . . . . . . 6 . . . . . . . . Spaces Dug 11 | . . . . . . . . . . 5 . 1 . 1 4 . Terrain Destroyed 56 | . . . . . . . . . . 5 . 4 1 4 29 13 Melee 11 | . . . . . . . . . . 5 . 1 . 1 4 . Projectile 6 | . . . . . . . . . . . . 2 1 3 . . AOE 39 | . . . . . . . . . . . . 1 . . 25 13 Terrain Rammed . | . . . . . . . . . . . . . . . . . Walls Destroyed . | . . . . . . . . . . . . . . . . . Machines Disabled . | . . . . . . . . . . . . . . . . . Actions | -11 -10 -10 -9 -9 -8 -8 -8 -8 -6 -5 -5 -5 -4 -3 -2 -2 --------- Run | Yrd Mat Min Mat Min Mat Sto Rec Scr Fac Fac Was Fac Fac Res Res Tes Total 5725 | 107 21 125 475 171 66 248 555 1407 422 311 210 611 134 349 372 141 Wait 415 | 20 . 32 67 13 7 29 . 7 105 15 24 46 10 13 26 1 Move 4806 | 56 19 86 359 157 48 179 539 1389 279 241 172 525 99 301 245 112 Hop . | . . . . . . . . . . . . . . . . . Pick Up 115 | 14 1 1 10 1 2 10 5 10 10 9 3 5 7 6 12 9 Fast Attach 11 | . . . 1 . . . . . 1 . . 1 2 2 4 . Attach 88 | 6 1 . 4 . 2 7 5 . 9 10 . 3 3 6 24 8 Detach 6 | . . . . . . . 1 . 2 . . 2 . . 1 . Swap 20 | . . . 3 . 1 1 . 1 3 2 . 2 2 4 . 1 Drop 33 | . . 1 5 . 1 2 . . 4 2 3 2 4 7 1 1 Fire 148 | 11 . 5 26 . . 16 4 . 8 27 . 24 7 8 11 1 Melee 69 | . . . . . 5 4 . . 1 5 . 1 . 2 48 3 Ram 1 | . . . . . . . 1 . . . . . . . . . Kick . | . . . . . . . . . . . . . . . . . Crush . | . . . . . . . . . . . . . . . . . Escape Stasis 5 | . . . . . . . . . . . . . . . . 5 Rewire 8 | . . . . . . . . . . . 8 . . . . . Trap . | . . . . . . . . . . . . . . . . . Miscellaneous . | . . . . . . . . . . . . . . . . . Route ------- -11/Scrapyard -10/Materials -10/Mines -9/Materials -9/Mines -8/Materials (discovered 2 exits: *Sto x2) -8/Storage -8/Recycling (discovered 2 exits: *Fac / *Scr) -8/Scraptown (discovered 2 exits: *Fac x2) -6/Factory (discovered 5 exits: *Fac / *Low x2 / Ext x2) -5/Factory -5/Waste -5/Factory -4/Factory -3/Research -2/Research (discovered 2 exits: *Tes x2) -2/Testing History --------- Turn | Location | Event 2 | -11/Scrapyard | Met Revision 17 10 | -11/Scrapyard | Discovered new exit (range 16) 124 | -11/Scrapyard | Entered Materials 124 | -10/Materials | Discovered new exit (range 7) 144 | -10/Materials | Entered Mines 147 | -10/Mines | Received a Mining Laser from a helpful Derelict 204 | -10/Mines | Learned location of Storage (-8) 215 | -10/Mines | Learned location of Mines (-8) 240 | -10/Mines | Discovered new exit (range 6) 253 | -10/Mines | Assisted by bots powering up and referring to "LRC-V3" 270 | -10/Mines | Entered Materials 270 | -9/Materials | Accompanied by 4 allies 270 | -9/Materials | Evolved 2 slots: Utility x1, Weapon x1 567 | -9/Materials | Build established: Skirmisher 781 | -9/Materials | Discovered new exit (range 12) 801 | -9/Materials | Entered Mines 801 | -9/Mines | Accompanied by 3 allies 964 | -9/Mines | A weapon hastily lodged in a ceiling crevice suddenly fell to the ground 987 | -9/Mines | Discovered new exit (range 9) 988 | -9/Mines | Learned location of 1 exit from Materials 1004 | -9/Mines | Entered Materials 1004 | -8/Materials | Accompanied by 3 allies 1004 | -8/Materials | Evolved 2 slots: Utility x1, Weapon x1 1005 | -8/Materials | Identified exit to Storage 1047 | -8/Materials | Discovered exit to Storage (range 14) 1095 | -8/Materials | Entered Storage 1095 | -8/Storage | Accompanied by 3 allies 1105 | -8/Storage | Met 01-MTF 1224 | -8/Storage | Lost 3 allies 1374 | -8/Storage | Lost 7 parts (1p2n2u2w) 1374 | -8/Storage | Identified exit to Recycling 1417 | -8/Storage | Found Prototype Launcher 1436 | -8/Storage | Entered Recycling 1436 | -8/Recycling | Accompanied by 1 ally (01-MTF) 1436 | -8/Recycling | Identified Scatter Rocket Array 1640 | -8/Recycling | Discovered new exit (range 15) 1647 | -8/Recycling | Core integrity fell below 50% 1671 | -8/Recycling | Identified exit to Factory 1876 | -8/Recycling | Build established: Tank 2152 | -8/Recycling | Scanned before Scraplab entrance 2178 | -8/Recycling | Entered Scraplab 2189 | -8/Recycling | Discovered new exit (range 2) 2189 | -8/Recycling | Identified exit to Scraptown 2190 | -8/Recycling | Entered Scraptown 2190 | -8/Scraptown | System corruption cleaned by C-Scrubber 2426 | -8/Scraptown | Discovered exit to Factory (range 5) 2513 | -8/Scraptown | Visited Bundlers 2601 | -8/Scraptown | Visited Cave Peace 2651 | -8/Scraptown | Visited The Evicted 2697 | -8/Scraptown | Visited Comm Corps 2980 | -8/Scraptown | Visited Fellowship of the Rings 3001 | -8/Scraptown | Visited IN-MT5's Study 3223 | -8/Scraptown | Visited UFD Registry 3229 | -8/Scraptown | Registered with UFD as "Gammaslicer" 3288 | -8/Scraptown | Visited Chapter 10 3331 | -8/Scraptown | Visited Sword Containment 3345 | -8/Scraptown | Found Prototype Slashing Weapon 3380 | -8/Scraptown | Visited Scrap Suit Storage 3438 | -8/Scraptown | Visited Research Penetration Think Tank 3461 | -8/Scraptown | Visited Science Testing Area 3485 | -8/Scraptown | Visited Infowarlord's Domain 3500 | -8/Scraptown | Found Exp. Terrain Scan Processor 3525 | -8/Scraptown | Visited LU-1G1's Boring Crew 3767 | -8/Scraptown | Visited Science Guys 3814 | -8/Scraptown | Visited Observation Area 3867 | -8/Scraptown | Visited Abandonware Association 3885 | -8/Scraptown | Learned abandonware demo "MELTYB.EXE" 4000 | -8/Scraptown | Met Optimus 4000 | -8/Scraptown | Accepted into 0bPrime 4070 | -8/Scraptown | Discovered exit to Factory (range 5) 4084 | -8/Scraptown | Entered Factory 4084 | -6/Factory | Evolved 4 slots: Propulsion x2, Utility x2 4243 | -6/Factory | Identified exit to Lower Caves 4243 | -6/Factory | Identified exit to Extension 4431 | -6/Factory | Found Prototype Processor 4482 | -6/Factory | Build established: Hacker-Skirmisher 4543 | -6/Factory | Discovered new exit (range 15) 4560 | -6/Factory | Identified exit to Factory 4585 | -6/Factory | Entered another Factory area 4585 | -5/Factory | Evolved 2 slots: Utility x2 4662 | -5/Factory | Garrison activated, responded to threat 4823 | -5/Factory | Loaded intel: 8 recycling unit locations 4893 | -5/Factory | Learned location of Protoforge (-2) 4914 | -5/Factory | Identified Companion Sword 5013 | -5/Factory | Sucked down chute 5013 | -5/Factory | Entered Waste 5014 | -5/Waste | Joined by Warlord forces that had cleared the area 5030 | -5/Waste | Lost 3 parts (1n1u1w) 5136 | -5/Waste | Discovered new exit (range 15) 5200 | -5/Waste | Identified exit to Factory 5231 | -5/Waste | Entered Factory 5231 | -5/Factory | Accompanied by 20 allies 5297 | -5/Factory | Build established: Hacker-Mutant 5419 | -5/Factory | Spotted B-75 Beast 5421 | -5/Factory | Allies destroyed B-75 Beast 5451 | -5/Factory | Lost 4 allies 5547 | -5/Factory | Loaded intel: 8 recycling unit locations 5707 | -5/Factory | Build established: Hacker-Skirmisher 5740 | -5/Factory | Lost 4 allies 5748 | -5/Factory | Garrison activated, responded to threat 5817 | -5/Factory | Scrapoid reinforcements arrived 5831 | -5/Factory | First assault squad dispatched 5844 | -5/Factory | High security lockdown imminent 5862 | -5/Factory | Lost 3 allies 5896 | -5/Factory | Discovered new exit (range 13) 5911 | -5/Factory | Identified exit to Factory 5924 | -5/Factory | High security lockdown engaged 5924 | -5/Factory | Entered another Factory area 5924 | -4/Factory | Accompanied by 9 allies 5924 | -4/Factory | Evolved 2 slots: Power x1, Utility x1 5925 | -4/Factory | Identified Exp. Targeting Computer 5975 | -4/Factory | Discovered new exit (range 35) 5987 | -4/Factory | Scrapoids reinforcements arrived? 6039 | -4/Factory | Loaded intel: 6 recycling unit locations 6053 | -4/Factory | Lost 8 allies 6080 | -4/Factory | Entered Research 6080 | -3/Research | Accompanied by 5 allies 6080 | -3/Research | Evolved 2 slots: Propulsion x1, Utility x1 6212 | -3/Research | Lost 4 parts (1p1u2w) 6213 | -3/Research | Lost 3 allies 6270 | -3/Research | Found Fusion Bomb Launcher 6407 | -3/Research | Discovered new exit (range 16) 6441 | -3/Research | Entered another Research area 6441 | -2/Research | Accompanied by 1 ally 6441 | -2/Research | Evolved 2 slots: Utility x1, Weapon x1 6464 | -2/Research | Identified exit to Testing 6504 | -2/Research | Fabricated Arm. Huge Wheel (x2) 6617 | -2/Research | Lost 17 parts (3p3n7u4w) 6782 | -2/Research | Core integrity fell below 50% 6788 | -2/Research | System corruption reached 10% 6842 | -2/Research | Lost 13 parts (2p4n2u5w) 6866 | -2/Research | Core integrity fell below 20% 6914 | -2/Research | Spotted B-90 Cyclops 6930 | -2/Research | Lost 3 parts (1p2n) 6940 | -2/Research | Entered Testing 6946 | -2/Testing | Found Prototype Processor 6957 | -2/Testing | Identified Exp. Core Analyzer 7056 | -2/Testing | Build established: Mutant 7090 | -2/Testing | Scanned by Researcher 7095 | -2/Testing | Found Prototype Protection 7096 | -2/Testing | Identified Med. Regenerative Plating 7098 | -2/Testing | Found Med. Regenerative Plating 7113 | -2/Testing | Destroyed by G-73 Enforcer with Phase Gun Last Messages --------------- 07094_ Dropped Imp. Weapon Shielding. 07095_ Acquired Prototype Protection. 07096_ Identified Med. Regenerative Plating. 07098_ Acquired Med. Regenerative Plating. 07098_ Held in stasis. 07098_ C-65 Expert is analyzing... 07099_ P-80 Master resets P-80 Master, system corruption cleaned. 07102_ Held in stasis. 07102_ C-65 Expert is analyzing... 07105_ Door Terminal disabled. 07106_ System corrupted: Substantial component data lost. 07106_ Fusion Bomb Launcher destroyed. 07106_ Held in stasis. 07106_ C-65 Expert is analyzing... 07109_ Imp. Quantum Reactor destroyed. 07110_ Held in stasis. 07110_ C-65 Expert is analyzing... 07112_ Exp. Heat Sink destroyed. Map ----- +----------------------------------------------------+ | ???????????????????????????????????????? | | ???????????????????????????????????????? | | ???????????????????????????????????????? | | ???????????????????????????????????????? | | ???????????????????????????????????????? | | ????????????????????? ??????????????? | | ????????????????????? #?????????????? | | ????????????????????# #?????????????? | | ????????????????????+ #?????????????? | | ????????????????????# #?????????????? | | ????????????????????# #?????????????? | | ????????????????????# #?????????????? | | ????????????????????# #?????????????? | | ????????????????????# #?????????????? | | ????????????????????# #?????????????? | | ????????????????????# #?????????????? | | ????????????##??????# ###########???? | | ????????????# ####### # #???? | | ????????????# ## # #???? | | ????????????? # ! #???? | | ????????????? # ! #???? | | ?????????????# ### # #???? | | ?????????????#g p##?# / #???? | | ?????????????# pgg#?# # #???? | | ?????????????##c #?# # #???? | | ?????????????# @!!#?# #####+####### | | ?????????????######?# " | | ????????????????????# ###### | | ????????????????????# #??????? | | ????????????????????# #??????? | | ????????????????????# ########??????? | | ????????????????????# #?????????????? | | ?????????????????#### #?????????????? | | ?????????????????# #????"""""????? | | ?????????????????# #????"""""???? | | ?????????????????# #????"""""???? | | ?????????????????# #????######## | | ?????????????????####+######### # | | ?????????????????# + + """ + | | ?????????????????# """ ##### """ # | | ?????????????????# """ #???# """ # | | ?????????????????# """ #???# #? | | ?????????????????# """ #???# #? | | ?????????????????# """ #???########?? | | ?????????????????# """ #????????????? | | ?????????????????# """ #????????????? | | ?????????????????# #????????????? | | ?????????????????##########????????????? | | ???????????????????????????????????????? | | ???????????????????????????????????????? | +----------------------------------------------------+ Best States ------------- Heat Dissipation 75 Energy Generation 34 Energy Capacity 370 Matter Stores 300 Matter Capacity 300 Sight Range 16 Robot Scan Range 15 Terrain Scan Range 16 Terrain Scan Density 10 Cloak Strength 3 Armor Coverage 600 Propulsion Shielding 66 Weapon Shielding 66 Evasion (%) 44 Targeting Accuracy 12 Melee Accuracy 6 Target Analysis 6 Recoil Reduction 4 Offensive Hacking 22 Defensive Hacking 44 Item Schematics ----------------- Terrain Scan Processor | -9/Materials | Extracted Disposable Heat Sink | -9/Materials | Extracted Sml. Laser | -9/Materials | Extracted Wheel | -9/Materials | Extracted Spread Laser | -9/Materials | Extracted Med. Storage Unit | -9/Materials | Extracted Hvy. Ion Engine | -9/Materials | Extracted Visual Processing Unit | -9/Materials | Extracted Com. Wheel | -9/Materials | Extracted Assault Rifle | -9/Materials | Extracted Imp. EM Shotgun | -9/Materials | Extracted Imp. Aluminum Leg | -9/Materials | Extracted Structural Scanner | -9/Materials | Extracted Arm. Huge Wheel | -5/Factory | Scanalyzed Robot Schematics ------------------ None Fabricated ------------ Arm. Huge Wheel | x2 | -2/Research Repaired ---------- Nothing Studied --------- Wheel | -9/Materials | Hacked Com. Wheel | -9/Materials | Hacked Assault Rifle | -9/Materials | Hacked Arm. Huge Wheel | -5/Factory | Hacked Arm. Wheel | -5/Factory | Hacked Centrium Wheel | -5/Factory | Hacked Alien Tech Used ----------------- None Achievements -------------- Frienemies Challenges ------------ None Game ------ Seed SubdwellerSpectralRipper Manual? 0 Play Time 01:31:27 Cumulative 111.2 hours Start 2025.12.04 @ 08:38:52 End 2025.12.04 @ 17:38:42 Sessions 7 Manual Loads 0 Difficulty Rogue Special Mode None Game No. 161 Rogue 161 Adventurer 0 Explorer 0 Win Type - Total 1 Types 1/0/0/0/0/0/0/0/0/0 Lore% 59 Gallery% 55 Achievement% 42 Wizard Run 0 Options --------- Layout 2 ASCII 0 Keyboard 0 Movement Mouse Keybinds 0 Fullscreen 1 Font 16/SmallcapsGlow Map View 50x49 Zoom Use 42% Tactical HUD 1 Map Filters NONE Filters NONE Steam SD RUN: c3e44b31-d2b7-4a20-95cc-7be2c4493240